[Event "*** Titled Tuesday Blitz"]
[Site "Chess.com"]
[Date "2021.04.27"]
[Round "2"]
[White "Stormeman100100"]
[Black "PavelShkapenko"]
[Result "1/2-1/2"]
[WhiteElo "2485"]
[BlackElo "2670"]
[TimeControl "180+1"]
[EndTime "10:18:38 PDT"]
[Termination "Game drawn by repetition"]

1. e4 {[%clk 0:03:00.9]} 1... e5 {[%clk 0:02:59.3]} 2. Nf3 {[%clk 0:03:00.9]}
2... Nc6 {[%clk 0:02:59.5]} 3. Bc4 {[%clk 0:02:57.9]} 3... d6 {[%clk 0:02:59.7]}
4. O-O {[%clk 0:02:53.7]} 4... Be7 {[%clk 0:02:59]} 5. d4 {[%clk 0:02:53.4]}
5... Nf6 {[%clk 0:02:58.7]} 6. dxe5 {[%clk 0:02:50.5]} 6... dxe5 {[%clk
0:02:58.6]} 7. Qe2 {[%clk 0:02:47.6]} 7... Bg4 {[%clk 0:02:57.6]} 8. c3 {[%clk
0:02:47.9]} 8... O-O {[%clk 0:02:55.7]} 9. h3 {[%clk 0:02:48.2]} 9... Bh5 {[%clk
0:02:55.8]} 10. g4 {[%clk 0:02:46.7]} 10... Bg6 {[%clk 0:02:51.5]} 11. Nbd2
{[%clk 0:02:45.4]} 11... h6 {[%clk 0:02:44.8]} 12. Rd1 {[%clk 0:02:45]} 12...
Qc8 {[%clk 0:02:43.9]} 13. Nh4 {[%clk 0:02:39]} 13... Bh7 {[%clk 0:02:43.8]} 14.
Nf5 {[%clk 0:02:36.8]} 14... Re8 {[%clk 0:02:39.7]} 15. Nf3 {[%clk 0:02:33.4]}
15... Bf8 {[%clk 0:02:36.8]} 16. Kh2 {[%clk 0:02:13.5]} 16... Ne7 {[%clk
0:02:27.5]} 17. Bxf7+ {[%clk 0:02:00.6]} 17... Kh8 {[%clk 0:02:14.7]} 18. Bxe8
{[%clk 0:01:57.8]} 18... Qxe8 {[%clk 0:02:15.6]} 19. Nxe5 {[%clk 0:01:33.3]}
19... Nxf5 {[%clk 0:02:15.1]} 20. exf5 {[%clk 0:01:33.2]} 20... Bd6 {[%clk
0:02:15.2]} 21. Bf4 {[%clk 0:01:27.9]} 21... Qa4 {[%clk 0:02:08.1]} 22. Nf7+
{[%clk 0:01:08.3]} 22... Kg8 {[%clk 0:02:07]} 23. Bxd6 {[%clk 0:01:08.3]} 23...
cxd6 {[%clk 0:02:07]} 24. Nxd6 {[%clk 0:00:57.1]} 24... Qf4+ {[%clk 0:02:06.9]}
25. Kg2 {[%clk 0:00:56.9]} 25... Kh8 {[%clk 0:02:01.3]} 26. Qe6 {[%clk
0:00:53.1]} 26... Bg8 {[%clk 0:02:01]} 27. Qe3 {[%clk 0:00:50.1]} 27... Bd5+
{[%clk 0:01:57.5]} 28. Kg1 {[%clk 0:00:44.7]} 28... Qxd6 {[%clk 0:01:55.5]} 29.
c4 {[%clk 0:00:44.7]} 29... Re8 {[%clk 0:01:41.8]} 30. Rxd5 {[%clk 0:00:37.2]}
30... Qc7 {[%clk 0:01:26.7]} 31. Qd2 {[%clk 0:00:20.6]} 31... Nxd5 {[%clk
0:01:24.5]} 32. cxd5 {[%clk 0:00:20.9]} 32... Qd6 {[%clk 0:01:23.4]} 33. Rd1
{[%clk 0:00:17.2]} 33... Re5 {[%clk 0:01:16.3]} 34. Qd4 {[%clk 0:00:16.9]} 34...
Re2 {[%clk 0:01:14.4]} 35. Rd2 {[%clk 0:00:10.5]} 35... Re1+ {[%clk 0:01:14.3]}
36. Kg2 {[%clk 0:00:10.8]} 36... Qa6 {[%clk 0:01:12.3]} 37. Qd3 {[%clk
0:00:08.9]} 37... Qd6 {[%clk 0:01:11.6]} 38. Re2 {[%clk 0:00:05.1]} 38... Rxe2
{[%clk 0:01:11.8]} 39. Qxe2 {[%clk 0:00:06]} 39... Qxd5+ {[%clk 0:01:12.4]} 40.
Qf3 {[%clk 0:00:06.8]} 40... Qxa2 {[%clk 0:01:12.4]} 41. f6 {[%clk 0:00:07.2]}
41... Qf7 {[%clk 0:00:55.1]} 42. fxg7+ {[%clk 0:00:06.3]} 42... Qxg7 {[%clk
0:00:55]} 43. b3 {[%clk 0:00:04.3]} 43... b5 {[%clk 0:00:52.9]} 44. Qd5 {[%clk
0:00:02.9]} 44... b4 {[%clk 0:00:51.4]} 45. Kg3 {[%clk 0:00:03.2]} 45... Qc7+
{[%clk 0:00:50.3]} 46. f4 {[%clk 0:00:03.1]} 46... Qc3+ {[%clk 0:00:50.2]} 47.
Kh4 {[%clk 0:00:03.7]} 47... Qf6+ {[%clk 0:00:48.6]} 48. Kg3 {[%clk 0:00:04]}
48... Qc3+ {[%clk 0:00:48.5]} 49. Qf3 {[%clk 0:00:04.6]} 49... Kg7 {[%clk
0:00:47.4]} 50. f5 {[%clk 0:00:03.5]} 50... Kf6 {[%clk 0:00:47.5]} 51. Kf2
{[%clk 0:00:03]} 51... Qd2+ {[%clk 0:00:46.9]} 52. Qe2 {[%clk 0:00:02.9]} 52...
Qf4+ {[%clk 0:00:46.8]} 53. Qf3 {[%clk 0:00:03.3]} 53... Qd2+ {[%clk 0:00:47]}
54. Kg3 {[%clk 0:00:03.8]} 54... Qc3 {[%clk 0:00:46.3]} 55. Kf2 {[%clk
0:00:04.3]} 55... Qd2+ {[%clk 0:00:46.5]} 1/2-1/2

[Event "*** Titled Tuesday Blitz"]
[Site "Chess.com"]
[Date "2021.04.27"]
[Round "2"]
[White "LamaChampetre"]
[Black "karwowskikacper"]
[Result "1/2-1/2"]
[WhiteElo "2212"]
[BlackElo "2423"]
[TimeControl "180+1"]
[EndTime "10:18:38 PDT"]
[Termination "Game drawn by stalemate"]

1. d4 {[%clk 0:03:00.9]} 1... Nf6 {[%clk 0:02:57.4]} 2. c4 {[%clk 0:03:00.4]}
2... g6 {[%clk 0:02:55.6]} 3. Nc3 {[%clk 0:03:00.5]} 3... Bg7 {[%clk 0:02:54.4]}
4. e4 {[%clk 0:03:00.7]} 4... d6 {[%clk 0:02:54.8]} 5. h3 {[%clk 0:03:01]} 5...
O-O {[%clk 0:02:54.5]} 6. Nf3 {[%clk 0:03:01.3]} 6... c5 {[%clk 0:02:26.5]} 7.
d5 {[%clk 0:03:00.9]} 7... e6 {[%clk 0:02:26.1]} 8. Bd3 {[%clk 0:03:01.1]} 8...
exd5 {[%clk 0:02:26]} 9. exd5 {[%clk 0:03:02]} 9... Re8+ {[%clk 0:02:25.6]} 10.
Be3 {[%clk 0:03:02.3]} 10... Nh5 {[%clk 0:01:57]} 11. Qd2 {[%clk 0:02:50.8]}
11... f5 {[%clk 0:01:36.5]} 12. O-O {[%clk 0:02:48.4]} 12... Nd7 {[%clk
0:01:27.2]} 13. Rfe1 {[%clk 0:02:29.9]} 13... Ne5 {[%clk 0:01:25.6]} 14. Nxe5
{[%clk 0:02:23.4]} 14... Bxe5 {[%clk 0:01:24.2]} 15. Bg5 {[%clk 0:02:21]} 15...
Bf6 {[%clk 0:00:41.1]} 16. Rxe8+ {[%clk 0:02:00.5]} 16... Qxe8 {[%clk 0:00:42]}
17. Re1 {[%clk 0:01:59.8]} 17... Qf8 {[%clk 0:00:35.5]} 18. Bh6 {[%clk
0:01:57.8]} 18... Bg7 {[%clk 0:00:34.4]} 19. Bg5 {[%clk 0:01:39.5]} 19... Bf6
{[%clk 0:00:24.9]} 20. Bh6 {[%clk 0:01:01.2]} 20... Qd8 {[%clk 0:00:23.8]} 21.
Be2 {[%clk 0:00:47.8]} 21... Ng7 {[%clk 0:00:21]} 22. Bf3 {[%clk 0:00:46.1]}
22... Bd7 {[%clk 0:00:19.4]} 23. Bf4 {[%clk 0:00:38.2]} 23... Be8 {[%clk
0:00:15.5]} 24. g4 {[%clk 0:00:36]} 24... fxg4 {[%clk 0:00:15.2]} 25. hxg4
{[%clk 0:00:36]} 25... a6 {[%clk 0:00:15.8]} 26. a4 {[%clk 0:00:29]} 26... Rb8
{[%clk 0:00:08.6]} 27. Qd3 {[%clk 0:00:21.4]} 27... b5 {[%clk 0:00:06.4]} 28.
axb5 {[%clk 0:00:20.9]} 28... axb5 {[%clk 0:00:07.3]} 29. cxb5 {[%clk
0:00:21.2]} 29... Bf7 {[%clk 0:00:02.9]} 30. Kg2 {[%clk 0:00:18]} 30... Bxc3
{[%clk 0:00:02.8]} 31. bxc3 {[%clk 0:00:16.2]} 31... Rxb5 {[%clk 0:00:03.7]} 32.
Qxb5 {[%clk 0:00:15.5]} 32... Qf6 {[%clk 0:00:03.1]} 33. Qb8+ {[%clk 0:00:10.4]}
33... Ne8 {[%clk 0:00:03]} 34. Bxd6 {[%clk 0:00:05.3]} 34... Kg7 {[%clk
0:00:02.2]} 35. Bg3 {[%clk 0:00:04.4]} 35... g5 {[%clk 0:00:01.7]} 36. d6 {[%clk
0:00:03.3]} 36... Nxd6 {[%clk 0:00:01.8]} 37. Qxd6 {[%clk 0:00:02.5]} 37... Kh6
{[%clk 0:00:02.7]} 38. Qxf6+ {[%clk 0:00:02.3]} 38... Bg6 {[%clk 0:00:03.6]} 39.
c4 {[%clk 0:00:03]} 1/2-1/2

[Event "*** Titled Tuesday Blitz"]
[Site "Chess.com"]
[Date "2021.04.27"]
[Round "2"]
[White "JoachimMouhamad"]
[Black "Mazanchenko_Dmitry"]
[Result "0-1"]
[WhiteElo "2448"]
[BlackElo "2278"]
[TimeControl "180+1"]
[EndTime "10:18:39 PDT"]
[Termination "Mazanchenko_Dmitry won by checkmate"]

1. e4 {[%clk 0:03:00.9]} 1... c5 {[%clk 0:02:57.7]} 2. Nf3 {[%clk 0:03:00.4]}
2... d6 {[%clk 0:02:57.7]} 3. d4 {[%clk 0:03:00.7]} 3... Nf6 {[%clk 0:02:58.2]}
4. Nc3 {[%clk 0:03:00.4]} 4... cxd4 {[%clk 0:02:58.3]} 5. Nxd4 {[%clk
0:03:01.3]} 5... Nc6 {[%clk 0:02:58.8]} 6. Bg5 {[%clk 0:03:00.5]} 6... Qb6
{[%clk 0:02:57.7]} 7. Nb3 {[%clk 0:02:41.2]} 7... e6 {[%clk 0:02:54.2]} 8. Bxf6
{[%clk 0:02:28.2]} 8... gxf6 {[%clk 0:02:53.7]} 9. Bd3 {[%clk 0:02:22.6]} 9...
h5 {[%clk 0:02:50.9]} 10. Qe2 {[%clk 0:02:09.3]} 10... Bh6 {[%clk 0:02:34.6]}
11. O-O {[%clk 0:02:02.8]} 11... Bf8 {[%clk 0:02:27.1]} 12. Kh1 {[%clk
0:01:57.2]} 12... Be7 {[%clk 0:02:26.5]} 13. f4 {[%clk 0:01:53]} 13... Bd7
{[%clk 0:02:26.3]} 14. f5 {[%clk 0:01:51]} 14... O-O-O {[%clk 0:02:23.3]} 15.
fxe6 {[%clk 0:01:39.2]} 15... fxe6 {[%clk 0:02:23]} 16. Rad1 {[%clk 0:01:35.7]}
16... Ne5 {[%clk 0:02:20.1]} 17. a4 {[%clk 0:01:26.1]} 17... Ng4 {[%clk
0:02:02.3]} 18. Rde1 {[%clk 0:01:14.9]} 18... d5 {[%clk 0:01:22.2]} 19. a5
{[%clk 0:01:12.3]} 19... Qc7 {[%clk 0:01:21.6]} 20. g3 {[%clk 0:00:57.1]} 20...
dxe4 {[%clk 0:01:16.6]} 21. Bxe4 {[%clk 0:00:50.3]} 21... f5 {[%clk 0:01:11]}
22. Bf3 {[%clk 0:00:47.6]} 22... h4 {[%clk 0:01:11]} 23. Bxg4 {[%clk 0:00:26.3]}
23... hxg3 {[%clk 0:01:10.6]} 24. h3 {[%clk 0:00:18.8]} 24... fxg4 {[%clk
0:01:08.7]} 25. Qxg4 {[%clk 0:00:17.5]} 25... Rdg8 {[%clk 0:01:05.2]} 26. Qe4
{[%clk 0:00:09.5]} 26... g2+ {[%clk 0:00:55.6]} 27. Qxg2 {[%clk 0:00:06.2]}
27... Bc6 {[%clk 0:00:53.5]} 28. Ne4 {[%clk 0:00:04.2]} 28... Rxg2 {[%clk
0:00:51.1]} 29. Kxg2 {[%clk 0:00:04.6]} 29... Qe5 {[%clk 0:00:42.4]} 30. Nd2
{[%clk 0:00:03]} 30... Qd4 {[%clk 0:00:34.1]} 31. Rf3 {[%clk 0:00:03.2]} 31...
Rg8+ {[%clk 0:00:31.8]} 32. Kf1 {[%clk 0:00:02.6]} 32... Rg1+ {[%clk 0:00:27.6]}
33. Ke2 {[%clk 0:00:03.2]} 33... Bb5+ {[%clk 0:00:27]} 34. Kd1 {[%clk
0:00:03.2]} 34... Rxe1+ {[%clk 0:00:26.4]} 35. Kxe1 {[%clk 0:00:04.1]} 35...
Qxb2 {[%clk 0:00:22.4]} 36. Rf7 {[%clk 0:00:03.6]} 36... Qb4 {[%clk 0:00:20.8]}
37. Kd1 {[%clk 0:00:02.1]} 37... a6 {[%clk 0:00:18.5]} 38. c3 {[%clk 0:00:02.6]}
38... Qa3 {[%clk 0:00:18]} 39. Kc2 {[%clk 0:00:02.9]} 39... Ba4+ {[%clk
0:00:18.2]} 40. Kb1 {[%clk 0:00:02.4]} 40... Bb3 {[%clk 0:00:16.4]} 41. Rxe7
{[%clk 0:00:01.4]} 41... Qa2+ {[%clk 0:00:15]} 42. Kc1 {[%clk 0:00:01.7]} 42...
Qc2# {[%clk 0:00:15.9]} 0-1

[Event "*** Titled Tuesday Blitz"]
[Site "Chess.com"]
[Date "2021.04.27"]
[Round "2"]
[White "KhatanbaatarBazar"]
[Black "m_ezat"]
[Result "0-1"]
[WhiteElo "2662"]
[BlackElo "2494"]
[TimeControl "180+1"]
[EndTime "10:18:40 PDT"]
[Termination "m_ezat won by checkmate"]

1. e4 {[%clk 0:02:56.7]} 1... c6 {[%clk 0:02:59.2]} 2. d4 {[%clk 0:02:56.6]}
2... d5 {[%clk 0:02:59.4]} 3. f3 {[%clk 0:02:57.2]} 3... e6 {[%clk 0:02:58.5]}
4. Nc3 {[%clk 0:02:56.3]} 4... Bb4 {[%clk 0:02:58.4]} 5. Ne2 {[%clk 0:02:55.8]}
5... Nf6 {[%clk 0:02:56.5]} 6. Qd3 {[%clk 0:02:55.5]} 6... b6 {[%clk 0:02:55.7]}
7. e5 {[%clk 0:02:54.4]} 7... Nfd7 {[%clk 0:02:52.3]} 8. a3 {[%clk 0:02:54.4]}
8... Ba6 {[%clk 0:02:48.4]} 9. Qe3 {[%clk 0:02:54]} 9... Be7 {[%clk 0:02:46.3]}
10. Nf4 {[%clk 0:02:49.5]} 10... Bxf1 {[%clk 0:02:44.4]} 11. Rxf1 {[%clk
0:02:49.2]} 11... c5 {[%clk 0:02:44.5]} 12. Nh5 {[%clk 0:02:49.1]} 12... g6
{[%clk 0:02:36.8]} 13. Ng3 {[%clk 0:02:43.7]} 13... Nc6 {[%clk 0:02:35.5]} 14.
Nce2 {[%clk 0:02:40.1]} 14... cxd4 {[%clk 0:02:35]} 15. Nxd4 {[%clk 0:02:40.6]}
15... Nxd4 {[%clk 0:02:23.1]} 16. Qxd4 {[%clk 0:02:40.9]} 16... Rc8 {[%clk
0:02:20.7]} 17. c3 {[%clk 0:02:37.7]} 17... Qc7 {[%clk 0:02:18.9]} 18. f4 {[%clk
0:02:37.8]} 18... Qc4 {[%clk 0:02:17]} 19. Qxc4 {[%clk 0:02:37.2]} 19... Rxc4
{[%clk 0:02:16.1]} 20. Ne2 {[%clk 0:02:35.4]} 20... Nc5 {[%clk 0:01:58.2]} 21.
Kd1 {[%clk 0:02:28.5]} 21... Nb3 {[%clk 0:01:55.7]} 22. Rb1 {[%clk 0:02:28]}
22... a5 {[%clk 0:01:55.2]} 23. Be3 {[%clk 0:02:27.7]} 23... Bc5 {[%clk
0:01:50.3]} 24. Bxc5 {[%clk 0:02:27.6]} 24... bxc5 {[%clk 0:01:47.5]} 25. Kc2
{[%clk 0:02:25.9]} 25... a4 {[%clk 0:01:47.6]} 26. Nc1 {[%clk 0:02:26.1]} 26...
Nxc1 {[%clk 0:01:47.1]} 27. Rbxc1 {[%clk 0:02:23.8]} 27... Re4 {[%clk
0:01:46.8]} 28. Rce1 {[%clk 0:02:20.6]} 28... Rxe1 {[%clk 0:01:45.7]} 29. Rxe1
{[%clk 0:02:20.8]} 29... Kd7 {[%clk 0:01:43.3]} 30. g4 {[%clk 0:02:13.7]} 30...
h5 {[%clk 0:01:41.8]} 31. g5 {[%clk 0:02:13.9]} 31... Kc6 {[%clk 0:01:37.4]} 32.
Rb1 {[%clk 0:02:13.3]} 32... Rb8 {[%clk 0:01:35.8]} 33. Rd1 {[%clk 0:01:59.4]}
33... Rb3 {[%clk 0:01:30.4]} 34. Rd3 {[%clk 0:01:56.4]} 34... Kb5 {[%clk
0:01:24.8]} 35. Re3 {[%clk 0:01:50.1]} 35... d4 {[%clk 0:01:16.8]} 36. Rd3
{[%clk 0:01:37.2]} 36... Kc4 {[%clk 0:01:16.5]} 37. Rd1 {[%clk 0:01:35.7]} 37...
dxc3 {[%clk 0:01:06.5]} 38. bxc3 {[%clk 0:01:35.9]} 38... Rxc3+ {[%clk 0:01:06]}
39. Kb2 {[%clk 0:01:36.5]} 39... Rf3 {[%clk 0:01:03]} 40. Rc1+ {[%clk 0:01:33]}
40... Kb5 {[%clk 0:01:01.8]} 41. Rd1 {[%clk 0:01:33.1]} 41... Rxf4 {[%clk
0:01:01.6]} 42. Rd7 {[%clk 0:01:33.3]} 42... Kc4 {[%clk 0:01:01.7]} 43. Ra7
{[%clk 0:01:32.8]} 43... Rf2+ {[%clk 0:01:01.6]} 44. Kc1 {[%clk 0:01:32.9]}
44... Kb3 {[%clk 0:01:01.4]} 45. Rb7+ {[%clk 0:01:32.7]} 45... Kxa3 {[%clk
0:00:58.7]} 46. h4 {[%clk 0:01:33.2]} 46... c4 {[%clk 0:00:58.6]} 47. Kb1 {[%clk
0:01:29]} 47... c3 {[%clk 0:00:58.2]} 48. Kc1 {[%clk 0:01:29.4]} 48... Ka2
{[%clk 0:00:56.1]} 49. Rc7 {[%clk 0:01:26.4]} 49... Kb3 {[%clk 0:00:55.8]} 50.
Rb7+ {[%clk 0:01:26.5]} 50... Kc4 {[%clk 0:00:55.4]} 51. Ra7 {[%clk 0:01:26.8]}
51... a3 {[%clk 0:00:51.8]} 52. Rxa3 {[%clk 0:01:25.3]} 52... Kd3 {[%clk
0:00:51.7]} 53. Kb1 {[%clk 0:01:25.3]} 53... Rf1+ {[%clk 0:00:51.9]} 54. Ka2
{[%clk 0:01:25]} 54... Rf4 {[%clk 0:00:42.1]} 55. Ra7 {[%clk 0:01:23.3]} 55...
c2 {[%clk 0:00:41.5]} 56. Rd7+ {[%clk 0:01:21.3]} 56... Rd4 {[%clk 0:00:41]} 57.
Rc7 {[%clk 0:01:21.5]} 57... Rc4 {[%clk 0:00:40.3]} 58. Rxc4 {[%clk 0:01:18.5]}
58... Kxc4 {[%clk 0:00:40.3]} 59. Kb2 {[%clk 0:01:19.1]} 59... Kd4 {[%clk
0:00:39.1]} 60. Kxc2 {[%clk 0:01:19.3]} 60... Kxe5 {[%clk 0:00:39.7]} 61. Kd3
{[%clk 0:01:20]} 61... Kf4 {[%clk 0:00:40.3]} 62. Kd4 {[%clk 0:01:20.7]} 62...
Kg4 {[%clk 0:00:40.9]} 63. Ke5 {[%clk 0:01:21.2]} 63... Kxh4 {[%clk 0:00:40.8]}
64. Kf6 {[%clk 0:01:21.7]} 64... Kg4 {[%clk 0:00:41.4]} 65. Kxf7 {[%clk
0:01:22.1]} 65... Kxg5 {[%clk 0:00:41.9]} 66. Kxe6 {[%clk 0:01:22.7]} 66... h4
{[%clk 0:00:42.5]} 67. Ke5 {[%clk 0:01:23.2]} 67... h3 {[%clk 0:00:42.5]} 68.
Ke4 {[%clk 0:01:23.8]} 68... h2 {[%clk 0:00:42.6]} 69. Kf3 {[%clk 0:01:24.3]}
69... h1=Q+ {[%clk 0:00:42.8]} 70. Kg3 {[%clk 0:01:25]} 70... Qf1 {[%clk
0:00:41.7]} 71. Kh2 {[%clk 0:01:24.1]} 71... Qf3 {[%clk 0:00:40.2]} 72. Kg1
{[%clk 0:01:24]} 72... Qe2 {[%clk 0:00:40.3]} 73. Kh1 {[%clk 0:01:24]} 73... Kg4
{[%clk 0:00:40.2]} 74. Kg1 {[%clk 0:01:24.6]} 74... Kg3 {[%clk 0:00:39.7]} 75.
Kh1 {[%clk 0:01:25.2]} 75... Qh2# {[%clk 0:00:39.3]} 0-1

[Event "*** Titled Tuesday Blitz"]
[Site "Chess.com"]
[Date "2021.04.27"]
[Round "2"]
[White "elcandado"]
[Black "NoGalloNoParty"]
[Result "0-1"]
[WhiteElo "2646"]
[BlackElo "2362"]
[TimeControl "180+1"]
[EndTime "10:18:40 PDT"]
[Termination "NoGalloNoParty won by resignation"]

1. d4 {[%clk 0:03:00.9]} 1... Nf6 {[%clk 0:02:59.5]} 2. Bf4 {[%clk 0:03:00.6]}
2... g6 {[%clk 0:02:58.3]} 3. Nc3 {[%clk 0:02:59.7]} 3... d5 {[%clk 0:02:57.1]}
4. Nb5 {[%clk 0:02:59.1]} 4... Na6 {[%clk 0:02:55.9]} 5. e3 {[%clk 0:02:58.8]}
5... Bg7 {[%clk 0:02:55.6]} 6. h3 {[%clk 0:02:56.4]} 6... O-O {[%clk 0:02:54.7]}
7. Nf3 {[%clk 0:02:55.7]} 7... c6 {[%clk 0:02:54.7]} 8. Na3 {[%clk 0:02:55.2]}
8... b5 {[%clk 0:02:46.9]} 9. Nb1 {[%clk 0:02:45.5]} 9... Bf5 {[%clk 0:02:39.9]}
10. c3 {[%clk 0:02:42]} 10... Nb8 {[%clk 0:02:38]} 11. a4 {[%clk 0:02:40.8]}
11... Nbd7 {[%clk 0:02:02.7]} 12. Nbd2 {[%clk 0:02:19.7]} 12... a6 {[%clk
0:01:58.8]} 13. Be2 {[%clk 0:02:17.5]} 13... Nb6 {[%clk 0:01:54.2]} 14. b3
{[%clk 0:02:15.8]} 14... Ne4 {[%clk 0:01:40.8]} 15. Nxe4 {[%clk 0:02:13.4]}
15... dxe4 {[%clk 0:01:23.3]} 16. Nd2 {[%clk 0:02:08]} 16... Nd5 {[%clk
0:01:22.2]} 17. Rc1 {[%clk 0:01:53.2]} 17... Nxf4 {[%clk 0:01:20.5]} 18. exf4
{[%clk 0:01:54.1]} 18... b4 {[%clk 0:01:15.6]} 19. cxb4 {[%clk 0:01:46.6]} 19...
Qxd4 {[%clk 0:01:13.2]} 20. Nc4 {[%clk 0:01:41.6]} 20... Rab8 {[%clk 0:00:51.2]}
21. Qxd4 {[%clk 0:01:28.1]} 21... Bxd4 {[%clk 0:00:50]} 22. Na5 {[%clk
0:01:28.3]} 22... e3 {[%clk 0:00:37.4]} 23. Nxc6 {[%clk 0:01:06.3]} 23... exf2+
{[%clk 0:00:36.5]} 24. Kd2 {[%clk 0:00:59]} 24... Rbd8 {[%clk 0:00:23.8]} 25.
Nxd4 {[%clk 0:00:39.8]} 25... Rxd4+ {[%clk 0:00:23]} 26. Ke3 {[%clk 0:00:40.2]}
26... Rxb4 {[%clk 0:00:22.4]} 27. Bc4 {[%clk 0:00:40.6]} 27... Be6 {[%clk
0:00:16.7]} 28. Rc3 {[%clk 0:00:32.1]} 28... Bxc4 {[%clk 0:00:16.3]} 29. bxc4
{[%clk 0:00:33]} 29... Rxa4 {[%clk 0:00:16.3]} 30. Kxf2 {[%clk 0:00:09.3]} 30...
Rc8 {[%clk 0:00:15.7]} 31. Rhc1 {[%clk 0:00:04.8]} 31... Rc5 {[%clk 0:00:16.1]}
32. Ke3 {[%clk 0:00:01.1]} 32... Raa5 {[%clk 0:00:07.4]} 33. Kd4 {[%clk
0:00:02]} 33... e6 {[%clk 0:00:05.8]} 34. g3 {[%clk 0:00:02.9]} 34... Kf8 {[%clk
0:00:05.7]} 35. Rb3 {[%clk 0:00:03.8]} 35... Ke7 {[%clk 0:00:05.9]} 36. Rb7+
{[%clk 0:00:04.7]} 36... Kf6 {[%clk 0:00:06]} 37. Rb8 {[%clk 0:00:05.6]} 37...
Rc7 {[%clk 0:00:05.6]} 38. Rb7 {[%clk 0:00:06.5]} 38... Rxb7 {[%clk 0:00:05.2]}
39. g4 {[%clk 0:00:07.4]} 39... Rc7 {[%clk 0:00:05.8]} 40. g5+ {[%clk
0:00:08.3]} 40... Ke7 {[%clk 0:00:06.3]} 0-1

[Event "*** Titled Tuesday Blitz"]
[Site "Chess.com"]
[Date "2021.04.27"]
[Round "2"]
[White "Guzman70"]
[Black "Gerodot71"]
[Result "0-1"]
[WhiteElo "2288"]
[BlackElo "2566"]
[TimeControl "180+1"]
[EndTime "10:18:40 PDT"]
[Termination "Gerodot71 won on time"]

1. c4 {[%clk 0:03:00.9]} 1... e5 {[%clk 0:02:59]} 2. Nc3 {[%clk 0:02:59.4]} 2...
Nf6 {[%clk 0:02:59]} 3. g3 {[%clk 0:02:58.3]} 3... c6 {[%clk 0:02:58.1]} 4. Bg2
{[%clk 0:02:51.6]} 4... d5 {[%clk 0:02:57.4]} 5. cxd5 {[%clk 0:02:49.3]} 5...
cxd5 {[%clk 0:02:58.3]} 6. d4 {[%clk 0:02:49.4]} 6... e4 {[%clk 0:02:57.8]} 7.
Bg5 {[%clk 0:02:47.4]} 7... Nbd7 {[%clk 0:02:57]} 8. Nh3 {[%clk 0:02:35.5]} 8...
Be7 {[%clk 0:02:52.5]} 9. Nf4 {[%clk 0:02:34.5]} 9... h6 {[%clk 0:02:52.4]} 10.
Bxf6 {[%clk 0:02:34.4]} 10... Nxf6 {[%clk 0:02:53.3]} 11. Qb3 {[%clk 0:02:28.3]}
11... Be6 {[%clk 0:02:18]} 12. Qxb7 {[%clk 0:02:15.4]} 12... O-O {[%clk
0:02:16.3]} 13. O-O {[%clk 0:02:01]} 13... Rb8 {[%clk 0:02:10.5]} 14. Nxe6
{[%clk 0:01:59.9]} 14... fxe6 {[%clk 0:02:08.8]} 15. Qxa7 {[%clk 0:01:52.1]}
15... Rxb2 {[%clk 0:02:07.2]} 16. Rab1 {[%clk 0:01:51.4]} 16... Rxb1 {[%clk
0:01:53.3]} 17. Rxb1 {[%clk 0:01:51.5]} 17... Ng4 {[%clk 0:01:51.7]} 18. Bh3
{[%clk 0:01:41]} 18... Nxf2 {[%clk 0:01:26.3]} 19. Bxe6+ {[%clk 0:01:40.6]}
19... Kh8 {[%clk 0:01:26.9]} 20. Nxd5 {[%clk 0:01:30.2]} 20... Bg5 {[%clk
0:00:54.8]} 21. Rf1 {[%clk 0:01:20]} 21... e3 {[%clk 0:00:52.5]} 22. Qd7 {[%clk
0:01:05.1]} 22... Qa5 {[%clk 0:00:36.4]} 23. h4 {[%clk 0:00:54.4]} 23... Qd2
{[%clk 0:00:31.2]} 24. hxg5 {[%clk 0:00:49.4]} 24... Qxe2 {[%clk 0:00:30.2]} 25.
gxh6 {[%clk 0:00:44.4]} 25... gxh6 {[%clk 0:00:26.9]} 26. Qd6 {[%clk 0:00:37.9]}
26... Qf3 {[%clk 0:00:16.6]} 27. Qe5+ {[%clk 0:00:33.2]} 27... Kh7 {[%clk
0:00:17]} 28. Bf5+ {[%clk 0:00:03]} 28... Rxf5 {[%clk 0:00:16.3]} 29. Qxf5+
{[%clk 0:00:03.2]} 29... Qxf5 {[%clk 0:00:15.9]} 30. Nxe3 {[%clk 0:00:03.9]}
30... Nh3+ {[%clk 0:00:15]} 31. Kg2 {[%clk 0:00:03.7]} 31... Qe4+ {[%clk
0:00:15.3]} 32. Kxh3 {[%clk 0:00:01.9]} 32... Qxe3 {[%clk 0:00:15.6]} 33. Rf4
{[%clk 0:00:02.8]} 33... Qa3 {[%clk 0:00:14.1]} 34. Kg4 {[%clk 0:00:03.3]} 34...
Qxa2 {[%clk 0:00:14.4]} 35. Kh4 {[%clk 0:00:03.3]} 35... Kg6 {[%clk 0:00:14.9]}
36. Kg4 {[%clk 0:00:03.4]} 36... Qe2+ {[%clk 0:00:14.7]} 37. Kh3 {[%clk
0:00:03.1]} 37... Kg5 {[%clk 0:00:14.4]} 38. Rh4 {[%clk 0:00:01.6]} 38... Qe6+
{[%clk 0:00:12.7]} 39. Kh2 {[%clk 0:00:01.5]} 39... h5 {[%clk 0:00:12.3]} 0-1